fUSD/lending_fUSD_20250905
["ID","MTS","AMOUNT","RATE_DAILY","PERIOD"]
[383642318,1757059846724,-414.27933686,0.00025067,2]
[383642320,1757059846733,-400.0,0.00025067,2]
[383642322,1757059846743,-400.0,0.00025067,2]
[383642324,1757059846753,-409.49511908,0.00025067,2]
[383642326,1757059846763,-442.25756178,0.00025067,2]
[383642328,1757059846773,-400.0,0.00025067,2]
[383642330,1757059846782,-400.0,0.00025067,2]
[383642332,1757059846791,-411.69930321,0.00025067,2]
[383642334,1757059846800,-400.0,0.00025067,2]
[383642336,1757059846810,-400.0,0.00025067,2]
[383642338,1757059846820,-400.0,0.00025067,2]
[383642341,1757059846830,-400.0,0.00025067,2]
[383642364,1757059847045,-400.0,0.00025067,2]
[383642366,1757059847054,-400.0,0.00025067,2]
[383642368,1757059847064,-408.0974691,0.00025067,2]
[383642370,1757059847073,-400.0,0.00025067,2]
[383642372,1757059847082,-400.0,0.00025067,2]
[383642374,1757059847092,-400.0,0.00025067,2]
[383642376,1757059847101,-512.73415476,0.00025067,2]
[383642378,1757059847110,-400.0,0.00025067,2]
[383642380,1757059847120,-400.0,0.00025067,2]
[383642382,1757059847129,-403.3085914,0.00025067,2]
[383642384,1757059847138,-405.97529845,0.00025067,2]
[383642386,1757059847148,-400.0,0.00025067,2]
[383642388,1757059847157,-400.0,0.00025067,2]
[383642390,1757059847166,-400.0,0.00025067,2]
[383642392,1757059847176,-396.25603813,0.00025067,2]
[383642394,1757059847186,-400.0,0.00025067,2]
[383642396,1757059847195,-400.0,0.00025067,2]
[383642398,1757059847205,-531.34394507,0.00025067,2]
[383642400,1757059847214,-400.0,0.00025067,2]
[383642402,1757059847223,-400.0,0.00025067,2]
[383642404,1757059847232,-400.0,0.00025067,2]
[383642405,1757059847241,-400.0,0.00025067,2]
[383642406,1757059847250,-409.27821604,0.00025067,2]
[383642407,1757059847259,-400.0,0.00025067,2]
[383642408,1757059847268,-403.23977546,0.00025067,2]
[383642409,1757059847276,-400.0,0.00025067,2]
[383642410,1757059847285,-400.0,0.00025067,2]
[383642411,1757059847294,-401.50407637,0.00025067,2]
[383642412,1757059847303,-400.0,0.00025067,2]
[383642413,1757059847312,-400.0,0.00025067,2]
[383642414,1757059847321,-400.0,0.00025067,2]
[383642415,1757059847329,-403.52962932,0.00025067,2]
[383642417,1757059847338,-400.0,0.00025067,2]
[383642419,1757059847348,-400.0,0.00025067,2]
[383642421,1757059847357,-400.0,0.00025067,2]
[383642423,1757059847366,-381.82752999,0.00025067,2]
[383642425,1757059847376,-409.85518992,0.00025067,2]
[383642427,1757059847386,-500.0,0.00025067,2]
[383642429,1757059847395,-400.0,0.00025067,2]
[383642431,1757059847404,-400.0,0.00025067,2]
[383642433,1757059847413,-400.0,0.00025067,2]
[383642435,1757059847423,-400.44509903,0.00025067,2]
[383642437,1757059847432,-408.74023623,0.00025067,2]
[383642439,1757059847442,-400.0,0.00025067,2]
[383642441,1757059847451,-400.0,0.00025067,2]
[383642443,1757059847460,-400.0,0.00025067,2]
[383642445,1757059847469,-400.0,0.00025067,2]
[383642447,1757059847478,-404.72417083,0.00025067,2]
[383642449,1757059847487,-400.0,0.00025067,2]
[383642451,1757059847497,-400.0,0.00025067,2]
[383642453,1757059847506,-411.03889453,0.00025067,2]
[383642455,1757059847516,-401.22624448,0.00025067,2]
[383642457,1757059847526,-400.0,0.00025067,2]
[383642459,1757059847535,-405.40962854,0.00025067,2]
[383642461,1757059847544,-400.0,0.00025067,2]
[383642463,1757059847553,-400.0,0.00025067,2]
[383642465,1757059847562,-400.0,0.00025067,2]
[383642467,1757059847572,-400.0,0.00025067,2]
[383642469,1757059847581,-400.0,0.00025067,2]
[383642471,1757059847591,-408.69,0.00025067,2]
[383642473,1757059847601,-400.0,0.00025067,2]
[383642475,1757059847610,-400.0,0.00025067,2]
[383642477,1757059847620,-400.0,0.00025067,2]
[383642479,1757059847630,-400.0,0.00025067,2]
[383642481,1757059847639,-400.0,0.00025067,2]
[383642483,1757059847648,-409.24397884,0.00025067,2]
[383642485,1757059847657,-400.0,0.00025067,2]
[383642487,1757059847666,-400.0,0.00025067,2]
[383642489,1757059847676,-400.0,0.00025067,2]
[383642491,1757059847686,-400.0,0.00025067,2]
[383642493,1757059847695,-400.0,0.00025067,2]
[383642495,1757059847704,-400.0,0.00025067,2]
[383642497,1757059847713,-400.0,0.00025067,2]
[383642499,1757059847723,-400.0,0.00025067,2]
[383642501,1757059847732,-400.0,0.00025067,2]
[383642503,1757059847741,-289.29405101,0.00025067,2]
[383642506,1757059847758,-110.70594899,0.00025067,2]
[383642508,1757059847767,-400.0,0.00025067,2]
[383642510,1757059847777,-400.0,0.00025067,2]
[383642512,1757059847786,-400.0,0.00025067,2]
[383642514,1757059847795,-443.96712052,0.00025067,2]
[383642516,1757059847805,-281.8537091,0.00025067,2]
[383642518,1757059847817,-118.1462909,0.00025067,2]
[383642520,1757059847826,-400.0,0.00025067,2]
[383642522,1757059847835,-370.80476341,0.00025067,2]
[383642524,1757059847847,-29.19523659,0.00025067,2]
[383642526,1757059847856,-307.98548342,0.00025067,2]
[383642897,1757060589372,324.30753899,0.00030137,120]
[383642900,1757060722147,154.78,0.00013699,2]
[383642901,1757060726340,2766.38995858,0.000175,2]
[383642903,1757060748775,10601.00968183,0.0001995,15]
[383642904,1757060757262,27313.1706166,0.0003,120]
[383642924,1757061031624,-1333.6811182,0.00021,2]
[383642925,1757061031633,-638.28299692,0.00021,2]
[383642926,1757061031642,-837.67967606,0.00022,15]
[383642927,1757061031652,-2900.0,0.000225,15]
[383642928,1757061031661,-253.0,0.000226,2]
[383642929,1757061031671,-1200.0,0.00022733,2]
[383642930,1757061031680,-300.0,0.00022733,2]
[383642931,1757061031690,-150.0,0.00022734,4]
[383642932,1757061031702,-241.65839454,0.00022734,4]
[383642933,1757061031712,-150.0,0.00022734,4]
[383642934,1757061031722,-150.0,0.00022734,4]
[383642935,1757061031731,-150.0,0.00022734,4]
[383642936,1757061031740,-150.0,0.00022734,4]
[383642937,1757061031750,-150.0,0.00022734,4]
[383642938,1757061031760,-358.41087886,0.00022911,2]
[383642939,1757061031770,-410.8457917,0.00023,14]
[383642940,1757061031779,-450.4,0.00023636,2]
[383642941,1757061031789,-200.0,0.00023647,2]
[383642942,1757061031799,-1440.09,0.00023654,2]
[383642943,1757061031809,-200.0,0.00023744,2]
[383642944,1757061031819,-160.0,0.00023765,7]
[383642945,1757061031828,-248.0,0.0002378,2]
[383642946,1757061031837,-676.91,0.00023972,2]
[383642947,1757061031846,-150.0,0.00023997,4]
[383642948,1757061031856,-5000.0,0.00024,2]
[383642949,1757061031866,-4512.9452481,0.00024,5]
[383642950,1757061031875,-803.78852724,0.00024012,2]
[383642951,1757061031885,-666.0,0.00024033,3]
[383642952,1757061031895,-218.59,0.00024033,2]
[383642953,1757061031904,-159.81,0.00024033,2]
[383642954,1757061031914,-201.06,0.00024042,2]
[383642955,1757061031924,-250.0,0.00024069,2]
[383642956,1757061031934,-63.96202383,0.00024117,2]
[383642957,1757061031946,-595.6389,0.00024117,2]
[383642958,1757061031958,-337.30987513,0.00024117,2]
[383642959,1757061031970,-90.08920104,0.00024117,2]
[383642960,1757061031979,-531.15079896,0.00024247,2]
[383642961,1757061031991,-2468.84920104,0.00024247,2]
[383642962,1757061032000,-257.91778498,0.00024247,2]
[383642963,1757061032010,-364.39209197,0.00024262,2]
[383642964,1757061032022,-2010.53818167,0.00024262,2]
[383642965,1757061032038,-300.56274524,0.00024262,2]
[383642966,1757061032056,-919.32386034,0.00024262,2]
[383642967,1757061032068,-1003.67787669,0.00024262,2]
[383642968,1757061032080,-333.93430056,0.00024262,2]
[383642969,1757061032091,-294.50094353,0.00024262,2]
[383642971,1757061032101,-803.78852724,0.00024275,2]
[383642973,1757061032111,-819.04,0.00024378,2]
[383642975,1757061032121,-803.78852724,0.00024617,2]
[383642977,1757061032131,-204.59,0.00024658,2]
[383642979,1757061032141,-420.0,0.00024685,2]
[383642981,1757061032150,-300.0,0.000247,9]
[383642983,1757061032161,-174.28269019,0.00024766,2]
[383642985,1757061032171,-174.25,0.0002477,2]
[383642987,1757061032180,-217.99,0.00024791,2]
[383642989,1757061032189,-600.0,0.000248,9]
[383642991,1757061032199,-1680.0,0.000248,2]
[383642993,1757061032209,-1000.0,0.000248,2]
[383642994,1757061032218,-677.21753,0.0002482,2]
[383642995,1757061032228,-803.78852726,0.00024893,2]
[383642996,1757061032238,-1070.59130426,0.000249,30]
[383642997,1757061032247,-1926.0,0.000249,2]
[383642998,1757061032258,-1000.0,0.000249,9]
[383642999,1757061032267,-4340.24820642,0.000249,2]
[383643000,1757061032278,-159.0,0.00024932,7]
[383643001,1757061032287,-322.6107,0.00024951,2]
[383643002,1757061032297,-151.0,0.00024951,2]
[383643003,1757061032306,-151.0,0.00024951,2]
[383643004,1757061032315,-613.78821265,0.00024951,2]
[383643005,1757061032325,-623.58710449,0.00024951,2]
[383643006,1757061032334,-1000.0,0.00024951,2]
[383643007,1757061032343,-1058.70373802,0.00024951,2]
[383643008,1757061032353,-152.93540775,0.00024956,2]
[383643009,1757061032362,-433.62065961,0.00024957,2]
[383643010,1757061032372,-179.06977035,0.00024966,2]
[383643011,1757061032386,-5000.0,0.00024966,2]
[383643012,1757061032396,-475.42,0.00024967,2]
[383643013,1757061032405,-243.0,0.0002497,2]
[383643014,1757061032415,-174.25,0.00024991,2]
[383643015,1757061032426,-159.0,0.00025,7]
[383643016,1757061032435,-1000.0,0.00025,2]
[383643017,1757061032444,-1883.0696303,0.00025,7]
[383643018,1757061032455,-159.46,0.00025,7]
[383643019,1757061032465,-185.49,0.00025,7]
[383643020,1757061032474,-151.58,0.00025019,2]
[383643021,1757061032483,-174.25,0.0002503,2]
[383643022,1757061032493,-174.25,0.0002504,2]
[383643023,1757061032502,-15419.88699878,0.00025042,2]
[383643024,1757061032512,-179.52,0.00025046,2]
[383643025,1757061032521,-153.39632508,0.00025053,7]
[383643026,1757061032531,-20586.4968345,0.00025055,3]
[383643027,1757061032540,-179.52,0.00025055,2]
[383643028,1757061032550,-501.62721333,0.00025055,2]
[383643029,1757061032559,-400.0,0.00025055,2]
[383643030,1757061032569,-400.0,0.00025055,2]
[383643031,1757061032578,-400.0,0.00025055,2]
[383643032,1757061032587,-538.99,0.00025055,2]
[383643033,1757061032596,-546.49,0.00025055,2]
[383643034,1757061032605,-400.0,0.00025055,2]
[383643035,1757061032614,-400.0,0.00025055,2]
[383643036,1757061032624,-400.0,0.00025055,2]
[383643037,1757061032633,-452.07383995,0.00025055,2]
[383643038,1757061032642,-400.0,0.00025055,2]
[383643039,1757061032652,-300.27355979,0.00025055,2]
[383643040,1757061032661,-400.0,0.00025055,2]
[383643041,1757061032670,-400.0,0.00025055,2]
[383643042,1757061032680,-400.0,0.00025055,2]
[383643043,1757061032689,-400.0,0.00025055,2]
[383643044,1757061032698,-400.0,0.00025055,2]
[383643045,1757061032707,-18340.00590442,0.00025056,3]
[383643046,1757061032747,-5461.5,0.00025056,3]
[383643047,1757061032758,-1501.45984793,0.00025056,3]
[383643048,1757061032770,-1103.0,0.00025056,3]
[383643049,1757061037606,-166.70592122,0.00024699,2]
[383643050,1757061037616,-181.63782754,0.00024699,2]
[383643051,1757061037630,-36.57788107,0.00024699,2]
[383643052,1757061037640,-185.89225981,0.00024699,2]
[383643053,1757061037649,-335.71351537,0.00024699,2]
[383643054,1757061037852,-557.30571376,0.00024956,5]
[383643055,1757061037864,-556.7,0.00024966,2]
[383643056,1757061037874,-400.0,0.00025055,2]
[383643057,1757061037883,-400.0,0.00025055,2]
[383643058,1757061037893,-439.3,0.00025055,2]
[383643059,1757061037903,-400.0,0.00025055,2]
[383643060,1757061037913,-442.03,0.00025055,2]
[383643061,1757061037923,-9439.30576672,0.00025056,3]
[383643062,1757061037935,-610.56010705,0.00025056,3]
[383643063,1757061037947,-9494.69718786,0.00025056,3]
[383643064,1757061037963,-837.26648161,0.00025056,3]
[383643065,1757061039767,-340.44607423,0.00025055,2]
[383643067,1757061042634,-250.0,0.0002415,2]
[383643068,1757061042644,-180.95392577,0.00025055,2]
[383643069,1757061042653,-400.0,0.00025055,2]
[383643070,1757061042662,-222.40017782,0.00025055,2]
[383643071,1757061042837,-177.59982218,0.00025055,2]
[383643072,1757061042847,-400.0,0.00025055,2]
[383643073,1757061042856,-400.0,0.00025055,2]
[383643074,1757061042865,-415.31084294,0.00025055,2]
[383643075,1757061042875,-97317.68254541,0.00025056,3]
[383643076,1757061042885,-21366.3720667,0.00025056,3]
[383643077,1757061042894,-30434.88800239,0.00025057,3]
[383643078,1757061042903,-61759.4905034,0.00025057,3]
[383643079,1757061042913,-30640.20339866,0.00025057,3]
[383643080,1757061042924,-1117.3052865,0.00025057,3]
[383643081,1757061042938,-12975.88785901,0.00025057,3]
[383643082,1757061043056,-19365.71965603,0.00025057,3]
[383643083,1757061043066,-772.92,0.00025064,2]
[383643084,1757061043076,-193.892291,0.00025064,2]
[383643085,1757061043085,-179.431953,0.00025064,2]
[383643086,1757061043094,-400.0,0.00025064,2]
[383643087,1757061043103,-1153.66,0.00025064,2]
[383643089,1757061043113,-400.0,0.00025064,2]
[383643090,1757061043122,-694.2,0.00025064,2]
[383643091,1757061043131,-400.0,0.00025064,2]
[383643092,1757061043141,-400.0,0.00025064,2]
[383643093,1757061043150,-400.0,0.00025064,2]
[383643094,1757061043159,-412.16172053,0.00025064,2]
[383643096,1757061043169,-400.0,0.00025064,2]
[383643098,1757061043178,-400.0,0.00025064,2]
[383643099,1757061043188,-225.1321165,0.00025064,2]
[383643101,1757061043197,-400.0,0.00025064,2]
[383643103,1757061043206,-471.50036918,0.00025064,2]
[383643105,1757061043216,-400.0,0.00025064,2]
[383643106,1757061043225,-400.0,0.00025064,2]
[383643107,1757061043235,-400.0,0.00025064,2]
[383643108,1757061043244,-404.93,0.00025064,2]
[383643109,1757061043254,-400.0,0.00025064,2]
[383643110,1757061043264,-400.0,0.00025064,2]
[383643111,1757061043273,-241.7910144,0.00025064,2]
[383643112,1757061043282,-400.0,0.00025064,2]
[383643113,1757061043292,-400.0,0.00025064,2]
[383643114,1757061043301,-448.4060728,0.00025064,2]
[383643115,1757061043311,-400.0,0.00025064,2]
[383643116,1757061043321,-461.21915544,0.00025064,2]
[383643117,1757061043330,-400.0,0.00025064,2]
[383643118,1757061043343,-400.0,0.00025064,2]
[383643119,1757061043354,-400.0,0.00025064,2]
[383643120,1757061043363,-400.0,0.00025064,2]
[383643121,1757061043373,-400.0,0.00025064,2]
[383643122,1757061043386,-400.0,0.00025064,2]
[383643123,1757061043396,-400.0,0.00025064,2]
[383643124,1757061043405,-400.0,0.00025064,2]
[383643125,1757061043415,-400.0,0.00025064,2]
[383643126,1757061043425,-400.0,0.00025064,2]
[383643127,1757061043435,-400.0,0.00025064,2]
[383643128,1757061043444,-400.0,0.00025064,2]
[383643129,1757061043454,-325.12919123,0.00025064,2]
[383643130,1757061043464,-400.0,0.00025064,2]
[383643131,1757061043473,-400.0,0.00025064,2]
[383643132,1757061043482,-400.0,0.00025064,2]
[383643133,1757061043491,-400.0,0.00025064,2]
[383643134,1757061043501,-400.0,0.00025064,2]
[383643135,1757061043511,-400.0,0.00025064,2]
[383643136,1757061043521,-400.0,0.00025064,2]
[383643137,1757061043529,-531.32,0.00025064,2]
[383643138,1757061043537,-400.0,0.00025064,2]
[383643139,1757061043548,-400.0,0.00025064,2]
[383643140,1757061043558,-400.0,0.00025064,2]
[383643141,1757061043570,-2859.99,0.00025064,2]
[383643142,1757061043580,-400.0,0.00025064,2]
[383643143,1757061043591,-400.0,0.00025064,2]
[383643144,1757061043601,-400.0,0.00025064,2]
[383643145,1757061043610,-461.58704504,0.00025064,2]
[383643146,1757061043621,-400.0,0.00025064,2]
[383643147,1757061043630,-400.0,0.00025064,2]
[383643148,1757061043640,-400.0,0.00025064,2]
[383643149,1757061043649,-400.0,0.00025064,2]
[383643150,1757061043660,-199.011095,0.00025064,2]
[383643151,1757061043671,-400.0,0.00025064,2]
[383643152,1757061043681,-400.0,0.00025064,2]
[383643153,1757061043690,-400.0,0.00025064,2]
[383643154,1757061043702,-400.0,0.00025064,2]
[383643155,1757061043712,-400.0,0.00025064,2]
[383643156,1757061043722,-400.0,0.00025064,2]
[383643157,1757061043733,-400.0,0.00025064,2]
[383643158,1757061043743,-400.0,0.00025064,2]
[383643159,1757061043754,-400.0,0.00025064,2]
[383643160,1757061043765,-400.0,0.00025064,2]
[383643161,1757061043775,-500.0,0.00025065,2]
[383643162,1757061043786,-435.43,0.00025065,2]
[383643163,1757061043796,-400.0,0.00025065,2]
[383643164,1757061043806,-400.0,0.00025065,2]
[383643165,1757061043816,-400.0,0.00025065,2]
[383643166,1757061043826,-400.0,0.00025065,2]
[383643167,1757061043836,-400.0,0.00025065,2]
[383643168,1757061043848,-400.0,0.00025065,2]
[383643169,1757061043859,-400.0,0.00025065,2]
[383643170,1757061043869,-400.0,0.00025065,2]
[383643171,1757061043879,-400.0,0.00025065,2]
[383643172,1757061043891,-400.0,0.00025065,2]
[383643173,1757061043900,-400.0,0.00025065,2]
[383643174,1757061043910,-400.0,0.00025065,2]
[383643175,1757061043920,-400.0,0.00025065,2]
[383643176,1757061043930,-400.0,0.00025065,2]
[383643177,1757061043940,-400.0,0.00025065,2]
[383643178,1757061043949,-400.0,0.00025065,2]
[383643179,1757061043959,-400.0,0.00025065,2]
[383643180,1757061043968,-400.0,0.00025065,2]
[383643181,1757061043977,-400.0,0.00025065,2]
[383643182,1757061043987,-400.0,0.00025065,2]
[383643183,1757061043997,-400.0,0.00025065,2]
[383643184,1757061044007,-400.0,0.00025065,2]
[383643185,1757061044016,-299.71939408,0.00025065,2]
[383643186,1757061044025,-400.0,0.00025065,2]
[383643187,1757061044035,-400.0,0.00025065,2]
[383643188,1757061044046,-400.0,0.00025065,2]
[383643189,1757061044056,-400.0,0.00025065,2]
[383643190,1757061044067,-400.0,0.00025065,2]
[383643191,1757061044075,-400.0,0.00025065,2]
[383643192,1757061044083,-400.0,0.00025065,2]
[383643193,1757061044092,-400.0,0.00025065,2]
[383643194,1757061044100,-400.0,0.00025065,2]
[383643195,1757061044108,-400.0,0.00025065,2]
[383643196,1757061044117,-400.0,0.00025065,2]
[383643197,1757061044125,-400.0,0.00025065,2]
[383643198,1757061044135,-400.0,0.00025065,2]
[383643199,1757061044143,-400.0,0.00025065,2]
[383643200,1757061044151,-400.0,0.00025065,2]
[383643201,1757061044160,-400.0,0.00025065,2]
[383643202,1757061044168,-400.0,0.00025065,2]
[383643203,1757061044176,-400.0,0.00025065,2]
[383643204,1757061044185,-400.0,0.00025065,2]
[383643205,1757061044194,-500.0,0.00025065,2]
[383643206,1757061044203,-400.0,0.00025065,2]
[383643207,1757061044212,-400.0,0.00025065,2]
[383643208,1757061044221,-314.32086929,0.00025065,2]
[383643209,1757061044231,-197.64,0.00025065,2]
[383643210,1757061044239,-400.0,0.00025065,2]
[383643211,1757061044248,-400.0,0.00025065,2]
[383643212,1757061044256,-500.0,0.00025065,2]
[383643213,1757061044265,-463.61173278,0.00025065,2]
[383643214,1757061044274,-302.99223927,0.00025065,2]
[383643215,1757061044283,-400.0,0.00025065,2]
[383643216,1757061044291,-380.78681078,0.00025065,2]
[383643217,1757061044299,-400.0,0.00025065,2]
[383643218,1757061044307,-400.0,0.00025065,2]
[383643219,1757061044316,-400.0,0.00025065,2]
[383643220,1757061044326,-400.0,0.00025065,2]
[383643221,1757061044335,-323.17392185,0.00025065,2]
[383643222,1757061044343,-400.0,0.00025065,2]
[383643223,1757061044352,-191.6602342,0.00025065,2]
[383643224,1757061044361,-400.0,0.00025065,2]
[383643225,1757061044370,-400.0,0.00025065,2]
[383643226,1757061044380,-400.0,0.00025065,2]
[383643227,1757061044390,-400.0,0.00025065,2]
[383643228,1757061044399,-400.0,0.00025065,2]
[383643229,1757061044407,-400.0,0.00025065,2]
[383643230,1757061044416,-400.0,0.00025065,2]
[383643231,1757061044426,-400.0,0.00025065,2]
[383643232,1757061044436,-400.0,0.00025065,2]
[383643233,1757061044444,-400.0,0.00025065,2]
[383643234,1757061044453,-400.0,0.00025065,2]
[383643235,1757061044462,-400.0,0.00025065,2]
[383643236,1757061044471,-400.0,0.00025065,2]
[383643237,1757061044479,-400.0,0.00025065,2]
[383643238,1757061044488,-400.0,0.00025065,2]
[383643239,1757061044497,-400.0,0.00025065,2]
[383643240,1757061044505,-400.0,0.00025065,2]
[383643241,1757061044514,-400.0,0.00025065,2]
[383643242,1757061044523,-400.0,0.00025065,2]
[383643243,1757061044532,-400.0,0.00025065,2]
[383643244,1757061044540,-400.0,0.00025065,2]
[383643245,1757061044550,-400.0,0.00025065,2]
[383643246,1757061044559,-400.0,0.00025065,2]
[383643247,1757061044567,-400.0,0.00025065,2]
[383643248,1757061044576,-362.57851069,0.00025065,2]
[383643249,1757061044584,-400.0,0.00025065,2]
[383643250,1757061044594,-400.0,0.00025065,2]
[383643251,1757061044603,-400.0,0.00025065,2]
[383643252,1757061044612,-400.0,0.00025065,2]
[383643253,1757061044621,-400.0,0.00025065,2]
[383643254,1757061044630,-500.0,0.00025065,2]
[383643255,1757061044639,-400.0,0.00025065,2]
[383643256,1757061044648,-400.0,0.00025065,2]
[383643257,1757061044658,-400.0,0.00025065,2]
[383643258,1757061044667,-497.76,0.00025065,2]
[383643259,1757061044675,-400.0,0.00025065,2]
[383643260,1757061044683,-400.0,0.00025065,2]
[383643261,1757061044692,-400.0,0.00025065,2]
[383643262,1757061044701,-400.0,0.00025065,2]
[383643263,1757061044710,-400.0,0.00025065,2]
[383643264,1757061044720,-400.0,0.00025065,2]
[383643265,1757061044729,-400.0,0.00025065,2]
[383643266,1757061044738,-400.0,0.00025065,2]
[383643267,1757061044747,-400.0,0.00025065,2]
[383643268,1757061044757,-400.0,0.00025065,2]
[383643269,1757061044766,-400.0,0.00025065,2]
[383643270,1757061044776,-400.0,0.00025065,2]
[383643271,1757061044785,-400.0,0.00025065,2]
[383643272,1757061044794,-400.0,0.00025065,2]
[383643273,1757061044803,-400.0,0.00025065,2]
[383643274,1757061044813,-500.0,0.00025065,2]
[383643275,1757061044822,-400.0,0.00025065,2]
[383643276,1757061044832,-400.0,0.00025065,2]
[383643277,1757061044841,-400.0,0.00025065,2]
[383643278,1757061044850,-400.0,0.00025065,2]
[383643279,1757061044859,-400.0,0.00025065,2]
[383643280,1757061044869,-400.0,0.00025065,2]
[383643281,1757061044878,-400.0,0.00025065,2]
[383643282,1757061044887,-400.0,0.00025065,2]
[383643283,1757061044896,-400.0,0.00025065,2]
[383643284,1757061044905,-400.0,0.00025065,2]
[383643285,1757061044915,-400.0,0.00025065,2]
[383643286,1757061044924,-400.0,0.00025065,2]
[383643287,1757061044933,-400.0,0.00025065,2]
[383643288,1757061044943,-400.0,0.00025065,2]
[383643289,1757061044952,-400.0,0.00025065,2]
[383643290,1757061044961,-489.56,0.00025065,2]
[383643291,1757061044970,-400.0,0.00025065,2]
[383643292,1757061044979,-400.0,0.00025065,2]
[383643293,1757061044988,-1005.16,0.00025065,2]
[383643294,1757061044997,-400.0,0.00025065,2]
[383643295,1757061045007,-1046.62047216,0.00025065,2]
[383643296,1757061045015,-400.0,0.00025065,2]
[383643297,1757061045025,-400.0,0.00025065,2]
[383643298,1757061045034,-400.0,0.00025065,2]
[383643299,1757061045044,-551.58,0.00025065,2]
[383643300,1757061045054,-308.05372685,0.00025065,10]
[383643301,1757061045063,-400.0,0.00025065,2]
[383643302,1757061045073,-400.0,0.00025065,2]
[383643303,1757061045083,-400.0,0.00025065,2]
[383643304,1757061045092,-400.0,0.00025065,2]
[383643305,1757061045102,-400.0,0.00025065,2]
[383643306,1757061045111,-400.0,0.00025065,2]
[383643307,1757061045121,-400.0,0.00025065,2]
[383643308,1757061045130,-400.0,0.00025065,2]
[383643309,1757061045139,-400.0,0.00025065,2]
[383643310,1757061045149,-400.0,0.00025065,2]
[383643311,1757061045159,-400.0,0.00025065,2]
[383643312,1757061045168,-400.0,0.00025065,2]
[383643313,1757061045177,-400.0,0.00025065,2]
[383643314,1757061045187,-583.18,0.00025065,2]
[383643315,1757061045196,-400.0,0.00025065,2]
[383643316,1757061045205,-400.0,0.00025065,2]
[383643317,1757061045215,-400.0,0.00025065,2]
[383643318,1757061045225,-400.0,0.00025065,2]
[383643319,1757061045235,-400.0,0.00025065,2]
[383643320,1757061045244,-400.0,0.00025065,2]
[383643321,1757061045253,-400.0,0.00025065,2]
[383643322,1757061045262,-400.0,0.00025065,2]
[383643323,1757061045272,-400.0,0.00025065,2]
[383643324,1757061045281,-400.0,0.00025065,2]
[383643325,1757061045291,-400.0,0.00025065,2]
[383643326,1757061045300,-400.0,0.00025065,2]
[383643327,1757061045309,-400.0,0.00025065,2]
[383643328,1757061045319,-417.81225344,0.00025065,2]
[383643329,1757061045328,-400.0,0.00025065,2]
[383643330,1757061045338,-686.34,0.00025065,2]
[383643331,1757061045347,-400.0,0.00025065,2]
[383643332,1757061045357,-400.0,0.00025065,2]
[383643333,1757061045367,-400.0,0.00025065,2]
[383643334,1757061045378,-1048.71,0.00025065,2]
[383643335,1757061045389,-400.0,0.00025065,2]
[383643336,1757061045398,-400.0,0.00025065,2]
[383643337,1757061045407,-518.43,0.00025065,2]
[383643338,1757061045417,-400.0,0.00025065,2]